bitfinex-derivatives/quotes_ETHF0:USTF0_20251107
["timestamp","ask_amount","ask_price","bid_price","bid_amount"]
[1762526621374,3.2078,3245.7,3244.4,3.2078]
[1762526621574,3.2078,3245.4,3244.8,3.2078]
[1762526621775,0.00220212,3245.7,3244.4,3.21024934]
[1762526621988,0.00220212,3245.7,3244.8,3.2078]
[1762526622279,0.00462015,3245.4,3245.3,3.2078]
[1762526623277,0.00462015,3245.4,3245.3,11.2078]
[1762526623583,3.2078,3246.5,3245.3,3.2078]
[1762526623876,3.2078,3247.0,3245.9,3.2078]
[1762526624083,3.2078,3247.2,3246.3,3.2078]
[1762526624379,2.09609144,3248.8,3246.8,3.2078]
[1762526624380,1.04804572,3248.1,3246.8,3.2078]
[1762526624682,0.49919,3247.4,3247.1,0.00462015]
[1762526624884,0.49921,3247.3,3247.1,0.00462015]
[1762526625484,1.23534138,3247.3,3247.1,0.00462015]
[1762526625678,0.4992,3247.3,3247.1,0.00462015]
[1762526626179,3.94751075,3247.7,3247.1,0.00462015]
[1762526626180,0.73971075,3247.6,3247.1,0.00462015]
[1762526626383,0.00462015,3247.8,3247.2,3.2078]
[1762526626678,0.00462015,3247.8,3246.8,0.00337128]
[1762526626679,3.2078,3247.3,3246.8,0.00337128]
[1762526626885,0.49926,3246.9,3246.8,0.00337128]
[1762526627083,0.49925,3247.0,3246.8,0.00337128]
[1762526627480,4.44785108,3247.0,3246.8,0.00337128]
[1762526627782,0.00462015,3247.8,3245.2,0.7721]
[1762526627783,5.52066966,3246.9,3245.5,3.2078]
[1762526627983,0.49946,3245.7,3245.5,3.2078]
[1762526628381,0.74080108,3245.8,3245.3,0.00462015]
[1762526628582,0.49949,3245.4,3245.3,0.00462015]
[1762526628884,0.00310592,3245.4,3245.3,0.00783637]
[1762526629281,0.00310592,3245.4,3245.3,8.00783637]
[1762526629481,0.00462015,3245.9,3245.8,0.49943]
[1762526629781,0.49929,3246.7,3245.8,3.2078]
[1762526629981,0.49937,3246.2,3246.0,3.2078]
[1762526630185,1.09493233,3246.6,3246.2,0.49936]
[1762526630384,0.4993,3246.7,3246.5,3.2078]
[1762526630684,1.00192009,3247.2,3246.6,3.9799]
[1762526630877,0.00462015,3247.2,3246.7,3.2078]
[1762526631274,0.00462015,3247.2,3245.3,0.00783637]
[1762526631275,3.2078,3247.0,3245.3,0.00783637]
[1762526631586,0.49948,3245.5,3245.3,0.00783637]
[1762526631884,0.00366413,3245.5,3245.3,0.00783637]
[1762526632077,1.6501315,3246.6,3246.4,0.49934]
[1762526632280,3.2078,3247.7,3246.5,3.2078]
[1762526632482,2.6201143,3248.4,3247.0,3.70704]
[1762526632483,3.2078,3248.2,3247.0,3.70704]
[1762526632682,3.2078,3248.2,3247.4,3.9799]
[1762526632888,0.4991,3248.0,3247.4,3.9799]
[1762526633086,0.00251211,3248.0,3247.4,3.9799]
[1762526633281,0.00251211,3248.0,3247.8,3.2078]
[1762526633486,0.00251211,3248.0,3247.8,3.21022851]
[1762526633681,0.50161211,3248.0,3247.8,0.00242851]
[1762526634187,0.00251211,3248.0,3247.8,0.00242851]
[1762526634490,0.50161211,3248.0,3247.8,0.00242851]
[1762526635083,0.50161211,3248.0,3247.0,3.2078]
[1762526635084,0.49923,3247.2,3247.0,3.2078]
[1762526635383,0.49923,3247.2,3247.0,3.14593624]
[1762526635577,3.2078,3247.6,3246.1,0.7721]
[1762526635578,3.2078,3247.1,3246.1,0.49938]
[1762526635776,12.271,3247.6,3246.1,0.49938]
[1762526635777,3.2078,3247.0,3246.1,3.70718]
[1762526635980,0.00462015,3246.9,3246.2,0.00462015]
[1762526636185,0.00462015,3246.9,3246.7,0.49929]
[1762526636387,0.00462015,3246.9,3246.6,3.2078]
[1762526636691,0.00462015,3246.9,3246.7,0.49929]
[1762526636984,0.00462015,3246.9,3246.6,3.2078]
[1762526637182,0.00462015,3246.9,3246.2,0.00462015]
[1762526637392,3.2078,3247.8,3246.7,3.2078]
[1762526637886,3.2078,3247.8,3247.0,0.49925]
[1762526638087,3.2078,3247.8,3247.4,0.49918]
[1762526638277,0.00251211,3248.0,3247.6,3.2078]
[1762526638484,0.00251211,3248.0,3247.2,3.2078]
[1762526638683,3.2078,3247.9,3247.2,3.2078]
[1762526638980,3.21031211,3248.0,3246.8,3.2078]
[1762526639283,3.21031211,3248.0,3246.2,0.00462015]
[1762526639484,0.49924,3247.1,3246.4,3.2078]
[1762526639686,0.00251211,3248.0,3247.4,0.8764]
[1762526639882,2.20017534,3249.0,3248.2,0.49906]
[1762526640084,5.40797534,3249.8,3248.7,3.2078]
[1762526640282,0.49887,3249.5,3248.7,3.2078]
[1762526640485,3.2078,3249.8,3249.1,3.2078]
[1762526640783,2.6201143,3250.4,3249.1,3.2078]
[1762526640784,3.2078,3250.8,3249.5,3.2078]
[1762526640984,3.2078,3251.7,3250.7,3.2078]
[1762526641181,0.49846,3252.2,3251.3,0.8764]
[1762526641378,1.0,3252.9,3252.0,3.2078]
[1762526641584,3.2078,3252.2,3251.4,0.00461283]
[1762526641791,0.00226159,3252.2,3251.4,0.00764259]
[1762526641980,0.00226159,3252.2,3252.1,3.2078]
[1762526642286,1.0,3252.9,3252.2,0.8764]
[1762526642487,1.0,3252.9,3252.6,3.2078]
[1762526642687,1.0,3252.9,3252.2,0.8764]
[1762526642890,1.0,3252.9,3252.4,3.2078]
[1762526643099,4.21043879,3252.9,3252.3,3.2078]
[1762526643390,4.21043879,3252.9,3251.4,0.00764259]
[1762526643391,0.49848,3252.0,3251.5,3.2078]
[1762526643590,0.49854,3251.6,3251.5,3.10807425]
[1762526643792,3.70634,3251.6,3251.4,0.00764259]
[1762526644288,3.2078,3251.6,3250.5,3.2078]
[1762526644494,3.2078,3251.7,3250.6,3.2078]
[1762526644690,1.00263879,3252.9,3252.4,0.49842]
[1762526644892,3.2078,3253.5,3252.4,3.2078]
[1762526645093,3.2078,3254.0,3253.0,0.49832]
[1762526645286,0.00458844,3253.3,3252.8,3.2078]
[1762526645599,0.00458844,3253.3,3252.5,4.042825]
[1762526645600,3.2078,3254.8,3253.6,0.8764]
[1762526645888,0.00304874,3254.8,3254.2,3.2078]
[1762526646093,0.50111874,3254.8,3254.2,3.2078]
[1762526646291,0.00304874,3254.8,3253.8,3.2078]
[1762526646497,0.49808,3254.7,3254.0,0.00461283]
[1762526646692,0.4981,3254.6,3254.0,0.00461283]
[1762526646893,0.00304874,3254.8,3254.0,0.00461283]
[1762526646894,0.49813,3254.4,3254.0,0.00461283]
[1762526647089,0.49817,3254.1,3253.6,0.87865072]
[1762526647293,0.00304874,3254.8,3253.6,0.87865072]
[1762526647587,0.00304874,3254.8,3253.8,3.2078]
[1762526647788,0.49818,3254.1,3253.6,0.87865072]
[1762526647991,3.2078,3253.8,3253.6,0.00225072]
[1762526648194,0.00461283,3254.0,3253.6,0.00225072]
[1762526648596,0.00304874,3254.8,3253.9,3.70599]
[1762526648793,0.00304874,3254.8,3254.0,3.2078]
[1762526648992,0.49817,3254.1,3254.0,3.2078]
[1762526649198,3.21084874,3254.8,3253.6,0.87865072]
[1762526649199,0.49821,3253.9,3253.6,0.87865072]
[1762526649492,3.2078,3254.4,3253.6,0.00225072]
[1762526649694,3.21084874,3254.8,3253.6,0.00225072]
[1762526649901,3.21084874,3254.8,3253.8,0.4982]
[1762526650197,3.70891874,3254.8,3254.0,3.70597]
[1762526650398,3.21084874,3254.8,3254.3,0.49813]
[1762526650592,0.00304874,3254.8,3254.4,3.2078]
[1762526651089,4.874e-05,3254.8,3254.6,0.49808]
[1762526651291,3.2078,3255.8,3254.5,14.1448]
[1762526651596,3.2078,3255.4,3254.3,3.2078]
[1762526651895,3.70589,3254.6,3254.5,0.00461283]
[1762526652395,0.00368754,3254.6,3253.8,3.2078]
[1762526652599,0.49817,3254.1,3253.6,0.87865072]
[1762526652898,3.2078,3254.2,3253.6,0.87865072]
[1762526653098,3.2078,3254.4,3253.6,0.00225072]
[1762526653295,3.2078,3253.9,3253.0,3.2078]
[1762526653490,0.00368754,3254.6,3250.8,0.8764]
[1762526653491,0.49833,3253.0,3252.0,3.2078]
[1762526653693,0.00461283,3252.9,3252.3,0.00461283]
[1762526653899,0.00461283,3252.9,3252.5,3.2078]
[1762526654095,0.00461283,3252.9,3252.7,0.49837]
[1762526654300,0.49817,3254.1,3252.7,0.00230336]
[1762526654604,3.2078,3253.9,3253.0,3.2078]
[1762526654795,3.70594,3254.3,3253.0,3.2078]
[1762526655001,0.00368754,3254.6,3253.9,4.0842]
[1762526655203,3.2078,3254.1,3252.9,3.2078]
[1762526655396,0.49828,3253.4,3252.9,3.2078]
[1762526655602,0.49816,3254.2,3253.3,3.2078]
[1762526655798,3.2078,3255.7,3253.9,4.0842]
[1762526656102,0.4979,3255.9,3254.7,3.2078]
[1762526656303,3.2078,3255.6,3254.9,0.49804]
[1762526656495,3.2078,3255.6,3254.5,0.00461283]
[1762526656698,0.49808,3254.7,3254.5,0.00461283]
[1762526656898,0.50084233,3254.7,3254.5,0.00461283]
[1762526657397,8.0,3254.6,3253.1,3.2078]
[1762526657601,3.2078,3254.1,3253.6,0.49824]
[1762526657804,3.70864233,3254.7,3253.9,0.49819]
[1762526658111,0.00276233,3254.7,3254.0,0.49817]
[1762526658399,3.2078,3254.1,3253.1,3.2078]
[1762526658602,8.00461283,3254.6,3253.1,3.2078]
[1762526658603,0.49829,3253.3,3253.1,3.2078]
[1762526658805,3.2078,3254.0,3253.1,3.2078]
[1762526659001,3.2078,3254.4,3253.1,3.2078]
[1762526659304,0.49829,3253.3,3253.1,3.2078]
[1762526659500,0.00461283,3254.6,3252.2,0.8764]
[1762526659501,0.49835,3252.9,3252.6,3.2078]
[1762526659701,0.49835,3252.9,3252.7,0.00691619]
[1762526659702,3.2078,3252.8,3252.7,0.00691619]
[1762526659902,0.49854,3251.7,3250.9,3.70645]
[1762526660097,0.49859,3251.4,3250.4,3.2078]
[1762526660297,3.2078,3251.5,3250.4,3.2078]
[1762526660498,0.49873,3250.5,3249.5,0.49887]
[1762526660703,3.2078,3250.0,3248.9,3.2078]
[1762526660901,0.00461283,3249.8,3249.4,0.49888]
[1762526661106,0.00461283,3249.8,3249.5,0.49887]
[1762526661403,0.00461283,3249.8,3249.1,0.00461283]
[1762526661603,0.49891,3249.3,3249.1,0.00461283]
[1762526661811,3.2078,3249.7,3249.1,0.00461283]
[1762526661999,3.2078,3249.2,3247.6,3.1838]
[1762526662307,3.2078,3249.0,3248.2,3.2078]
[1762526662511,0.00461283,3249.8,3249.7,0.49884]
[1762526662713,0.00461283,3249.8,3249.7,3.2078]
[1762526663009,0.00461283,3249.8,3249.7,3.21030974]
[1762526663204,0.00461283,3249.8,3249.7,0.00250974]
[1762526663803,0.00461283,3249.8,3249.7,3.70914974]
[1762526664107,0.00461283,3249.8,3249.7,0.00250974]
[1762526664509,0.49839,3252.7,3250.8,0.8764]
[1762526664710,3.2078,3253.2,3251.7,3.2078]
[1762526665007,2.67358872,3256.2,3252.7,3.2078]
[1762526665008,3.2078,3254.1,3252.7,3.2078]
[1762526665212,3.2078,3253.2,3252.5,0.49841]
[1762526665409,3.70619,3252.7,3252.5,0.00695154]
[1762526665711,3.2078,3252.7,3252.5,0.00695154]
[1762526665916,3.70619,3252.7,3252.5,0.00695154]
[1762526666104,0.49836,3252.9,3252.5,0.00695154]
[1762526666303,0.00779644,3253.2,3252.5,3.21475154]
[1762526666608,0.00779644,3253.2,3253.1,3.2078]
[1762526666808,0.00779644,3253.2,3252.5,0.00695154]
[1762526667311,0.00779644,3253.2,3252.8,3.2078]
[1762526667512,0.00779644,3253.2,3253.0,0.49832]
[1762526667710,0.00461283,3253.2,3253.0,0.49832]
[1762526668007,3.2078,3254.3,3253.2,0.49829]
[1762526668206,3.2078,3254.7,3253.6,3.2078]
[1762526668507,0.809,3256.4,3254.4,3.2078]
[1762526668508,0.49802,3255.1,3254.4,3.2078]
[1762526668810,0.00788126,3255.1,3254.4,0.00461283]
[1762526669208,0.4981,3254.6,3254.4,0.00461283]
[1762526669410,0.00788126,3255.1,3254.4,0.00461283]
[1762526669605,0.00788126,3255.1,3254.4,3.71051283]
[1762526669810,0.00788126,3255.1,3254.8,3.2078]
[1762526670108,0.00788126,3255.1,3254.8,3.21092162]
[1762526670308,0.00788126,3255.1,3254.9,8.49803]
[1762526670510,3.2078,3256.1,3255.0,8.7825]
[1762526670811,3.2078,3256.1,3255.0,3.2078]
[1762526671012,5.68649363,3257.7,3255.0,3.2078]
[1762526671013,3.2078,3257.2,3255.9,3.2078]
[1762526671207,3.2078,3257.2,3256.3,0.49782]
[1762526671407,0.00461283,3257.1,3256.4,3.21241283]
[1762526672017,0.00461283,3257.1,3256.9,3.2078]
[1762526672310,0.00461283,3257.1,3256.4,3.21241283]
[1762526672510,0.49774,3256.9,3256.4,0.00461283]
[1762526672705,0.49779,3256.6,3256.4,3.21241283]
[1762526672903,0.49779,3256.6,3256.4,0.00461283]
[1762526673206,0.49773,3257.0,3256.5,3.2078]
[1762526673409,0.49774,3256.9,3256.5,3.2078]
[1762526673607,0.49778,3256.7,3256.5,3.2078]
[1762526673811,0.50233283,3257.1,3256.4,0.00461283]
[1762526674010,0.50233283,3257.1,3255.0,0.7825]
[1762526674011,0.49789,3255.9,3255.3,3.2078]
[1762526674310,0.49779,3256.6,3255.4,0.49796]
[1762526674516,0.00461283,3257.1,3255.7,3.2078]
[1762526674517,0.49776,3256.8,3255.7,3.2078]
[1762526674807,0.00461283,3257.1,3254.9,3.2078]
[1762526674808,0.49801,3255.2,3254.9,3.2078]
[1762526675007,0.49801,3255.2,3254.8,0.00312162]
[1762526675008,0.49804,3255.0,3254.8,0.00312162]
[1762526675312,3.70585,3254.9,3254.7,0.00460547]
[1762526675502,0.49815,3254.2,3253.7,3.2078]
[1762526675705,3.2078,3254.8,3253.7,3.2078]
[1762526675906,0.49816,3254.2,3253.7,3.2078]
[1762526676101,0.00460547,3255.4,3253.7,3.21101806]
[1762526676102,3.2078,3254.8,3253.7,3.21101806]
[1762526676306,0.4982,3253.9,3253.7,0.00321806]
[1762526677004,3.2078,3254.0,3253.7,0.00321806]
[1762526677204,0.00315565,3254.2,3253.7,0.00321806]
[1762526677407,0.00315565,3254.2,3253.9,3.2078]
[1762526677801,0.00315565,3254.2,3254.0,0.49817]
[1762526678205,0.00315565,3254.2,3254.0,0.49818]
[1762526678603,0.49799,3255.3,3254.6,0.49807]
[1762526678802,3.2078,3255.0,3254.0,3.2078]
[1762526679306,3.2078,3257.5,3255.4,3.2078]
[1762526679504,2.37441507,3257.8,3257.1,3.2078]
[1762526679505,0.7169,3257.8,3257.1,3.2078]
[1762526679709,0.49769,3257.2,3257.1,0.00277321]
[1762526679911,0.50013554,3257.5,3257.1,3.21057321]
[1762526680210,0.00248554,3257.5,3257.1,0.00277321]
[1762526680406,0.00248554,3257.5,3257.1,3.21057321]
[1762526681009,0.50013554,3257.5,3257.1,3.21057321]
[1762526681306,0.50013554,3257.5,3257.3,0.49767]
[1762526681307,0.00248554,3257.5,3257.3,0.49767]
[1762526681505,0.00248554,3257.5,3257.4,0.49766]
[1762526681705,0.00248554,3257.5,3257.1,3.21057321]
[1762526682009,0.00248554,3257.5,3257.3,0.49767]
[1762526682311,3.2078,3259.3,3257.2,8.0]
[1762526682512,0.00755368,3259.6,3258.9,3.2078]
[1762526682816,3.2078,3260.6,3259.5,3.2078]
[1762526683017,0.49721,3260.4,3259.5,3.70513]
[1762526683202,0.00459563,3260.3,3260.0,3.2078]
[1762526683402,0.00459563,3260.3,3260.1,0.49725]
[1762526683607,0.00459563,3260.3,3260.0,3.2078]
[1762526683810,0.49726,3260.1,3259.6,3.21240547]
[1762526684107,3.2078,3260.0,3259.6,0.00460547]
[1762526684312,0.00459563,3260.3,3259.6,3.21240547]
[1762526684513,0.00459563,3260.3,3260.2,3.2078]
[1762526684718,3.2078,3262.7,3260.2,3.2078]
[1762526685011,3.2078,3262.7,3261.8,3.2078]
[1762526685213,1.0501,3263.1,3262.2,3.2078]
[1762526685520,3.66816002,3266.9,3261.8,5.191]
[1762526685521,3.2078,3264.9,3262.8,3.2078]
[1762526685710,3.2078,3264.4,3263.6,3.2078]
[1762526685909,3.2078,3264.6,3263.6,3.2078]
[1762526686106,0.00320455,3264.9,3263.6,3.2078]
[1762526686409,0.00320455,3264.9,3264.8,3.2078]
[1762526687015,0.00320455,3264.9,3263.7,3.2078]
[1762526687016,11.21100455,3264.9,3263.7,3.2078]
[1762526687318,11.21100455,3264.9,3263.5,0.00459805]
[1762526687319,0.00320455,3264.9,3264.4,3.2078]
[1762526687520,0.00320455,3264.9,3264.4,3.20308477]
[1762526687521,0.49653,3264.8,3264.4,3.20308477]
[1762526687715,0.49653,3264.8,3264.3,3.2078]
[1762526687908,0.00320455,3264.9,3264.7,3.2078]
[1762526688121,3.2078,3266.5,3264.7,3.2078]
[1762526688122,0.49633,3266.2,3264.9,0.49652]
[1762526688420,0.8055,3265.5,3264.9,3.2078]
[1762526688614,3.2078,3265.3,3264.1,3.2078]
[1762526688810,0.49659,3264.5,3264.1,3.2078]
[1762526689011,0.8055,3265.5,3264.1,13.6138]
[1762526689213,0.49644,3265.4,3264.6,3.2078]
[1762526689417,0.49644,3265.4,3265.0,3.2078]
[1762526689614,0.80802492,3265.5,3264.6,3.2078]
[1762526689615,0.49645,3265.3,3264.6,3.2078]
[1762526689810,0.00457335,3265.3,3265.2,3.2078]
[1762526690021,0.00457335,3265.3,3265.2,3.21096853]
[1762526690318,0.00457335,3265.3,3265.2,0.00316853]
[1762526690722,4.0133,3267.0,3265.3,6.1248]
[1762526691019,4.0133,3267.0,3266.0,3.2078]
[1762526691020,0.8055,3267.0,3266.0,3.2078]
[1762526691225,0.49594,3268.7,3266.4,3.2078]
[1762526691522,3.2078,3268.1,3267.3,3.2078]
[1762526691714,0.49608,3267.8,3267.4,0.00459074]
[1762526691911,0.00342961,3268.1,3267.4,0.00459074]
[1762526691912,0.00342961,3268.1,3267.4,3.21239074]
[1762526692120,0.05326399,3269.3,3269.1,0.49588]
[1762526692121,3.2078,3269.2,3269.1,0.49588]
[1762526692317,3.2078,3270.4,3269.0,14.8008]
[1762526692517,0.49567,3270.5,3269.4,3.2078]
[1762526692723,3.2078,3269.6,3268.4,3.2078]
[1762526692917,3.2078,3268.5,3267.9,3.93641143]
[1762526693119,0.49609,3267.8,3267.3,3.2078]
[1762526693326,3.2078,3267.8,3266.5,3.2078]
[1762526693523,0.00388224,3268.5,3267.7,3.2078]
[1762526693823,3.2078,3269.9,3268.4,3.2078]
[1762526694016,3.2078,3270.6,3269.2,3.2078]
[1762526694214,3.2078,3269.6,3268.8,0.00459074]
[1762526694419,3.2078,3269.5,3268.3,3.2078]
[1762526694613,3.2078,3269.1,3268.3,3.21084618]
[1762526694813,3.2078,3269.4,3268.3,3.21084618]
[1762526695014,3.70377,3268.5,3268.4,0.00459074]
[1762526695218,0.00287124,3269.5,3268.4,0.00459074]
[1762526695429,3.2078,3268.5,3268.4,0.00459074]
[1762526695630,0.00287124,3269.5,3268.3,3.2078]
[1762526695919,0.49586,3269.2,3268.3,3.2078]
[1762526696128,3.2078,3268.4,3267.9,3.2078]
[1762526696317,3.2078,3269.1,3267.9,3.2078]
[1762526696514,3.2078,3268.3,3267.5,3.2078]
[1762526696718,0.00456635,3268.2,3268.0,3.2078]
[1762526697223,0.00287124,3269.5,3268.1,17.3278]
[1762526697415,0.49870124,3269.5,3269.1,3.2078]
[1762526697623,0.00287124,3269.5,3269.1,3.2078]
[1762526697929,0.49870124,3269.5,3268.7,3.2078]
[1762526698125,0.00287124,3269.5,3268.7,3.70373]
[1762526698323,0.00287124,3269.5,3269.4,0.49583]
[1762526698627,0.8055,3273.6,3271.1,3.2078]
[1762526698924,4.0133,3273.6,3273.1,3.2078]
[1762526699130,0.49532,3272.8,3272.7,3.2078]
[1762526699315,3.2078,3273.5,3272.7,3.2078]
[1762526699517,0.05317958,3274.9,3272.7,3.2078]
[1762526699518,3.2078,3274.5,3273.2,3.2078]
[1762526699726,0.8055,3275.2,3274.2,3.2078]
[1762526699917,3.2078,3277.4,3274.9,3.2078]
[1762526700117,3.2078,3277.4,3276.3,3.2078]
[1762526700424,0.8091,3281.6,3277.3,3.2078]
[1762526700425,3.2078,3278.5,3277.3,3.2078]
[1762526700628,0.8091,3281.6,3278.1,3.2078]
[1762526700825,0.8091,3277.8,3277.7,3.20069179]
[1762526701022,0.8091,3277.8,3276.3,0.0022146]
[1762526701222,0.8091,3276.0,3274.9,3.2078]
[1762526701419,3.2078,3275.4,3273.9,3.2078]
[1762526701619,3.70272,3275.5,3274.7,3.2078]
[1762526701820,3.70272,3275.5,3272.3,10.885]
[1762526701821,0.8091,3276.0,3274.8,3.2078]
[1762526702021,0.49497,3275.1,3274.8,3.2078]
[1762526702227,0.51269977,3275.0,3274.8,0.00342896]
[1762526702720,0.01769977,3275.0,3274.9,3.2078]
[1762526703235,0.01769977,3275.0,3273.7,3.2078]
[1762526703236,0.49517,3273.8,3273.7,3.2078]
[1762526703423,0.4952,3273.6,3273.0,3.2078]
[1762526703629,4.0169,3273.7,3272.5,3.2078]
[1762526703924,3.2078,3273.3,3272.5,3.2078]
[1762526704138,3.2078,3273.3,3270.4,3.047]
[1762526704139,0.8091,3271.8,3270.7,3.2078]
[1762526704319,0.49562,3270.8,3270.7,3.21081641]
[1762526704518,3.2078,3270.9,3269.9,3.2078]
[1762526704726,0.01769977,3271.3,3270.4,3.21238218]
[1762526704916,0.01769977,3271.3,3270.6,3.2078]
[1762526705126,3.2078,3270.8,3270.4,0.00458218]
[1762526705426,0.01769977,3270.6,3270.4,0.00458218]
[1762526705635,3.2078,3271.7,3270.5,3.2078]
[1762526705832,0.81256801,3271.8,3270.4,0.00686104]
[1762526705833,3.2078,3270.6,3270.4,0.00686104]
[1762526706038,3.2078,3270.6,3269.2,3.2078]
[1762526706336,0.8091,3269.9,3269.2,3.2078]
[1762526706627,0.8091,3269.9,3269.4,3.2078]
[1762526706817,0.8091,3269.9,3265.8,3.054]
[1762526706818,3.2078,3269.5,3268.6,3.2078]
[1762526707023,0.49587,3269.2,3268.6,3.21129861]
[1762526707229,0.00458218,3269.4,3268.3,3.2078]
[1762526707434,0.00458218,3269.4,3269.1,3.2078]
[1762526707731,0.00458218,3269.4,3268.7,3.1838]
[1762526707926,0.49591,3268.9,3268.3,3.2078]
[1762526708131,3.2078,3269.2,3268.3,3.2078]
[1762526708429,0.8091,3268.0,3267.8,3.2078]
[1762526708631,0.49614,3267.4,3266.4,3.2078]
[1762526708819,3.2078,3267.3,3266.4,3.2078]
[1762526709420,0.49623,3266.8,3266.5,0.00459067]
[1762526709620,0.00361279,3266.8,3266.5,0.00459067]
[1762526710023,8.0,3266.7,3265.8,3.2078]
[1762526710226,0.49636,3265.9,3264.7,3.2078]
[1762526710424,3.2078,3265.0,3264.3,3.2078]
[1762526710625,0.4965,3265.0,3264.3,3.2078]
[1762526710826,0.49657,3264.6,3264.3,3.2078]
[1762526711125,0.49657,3264.6,3264.1,0.00459067]
[1762526711126,0.8091,3264.2,3264.1,0.00459067]
[1762526711829,8.8091,3264.2,3264.1,0.00459067]
[1762526712131,0.81246112,3264.2,3264.1,0.00723762]
[1762526712324,0.00459067,3264.8,3264.6,0.49655]
[1762526712525,11.019,3267.4,3264.1,8.00723762]
[1762526712526,3.2078,3266.6,3264.7,3.2078]
[1762526712733,3.2078,3266.6,3266.0,3.2078]
[1762526712931,0.49616,3267.3,3266.0,3.2078]
[1762526713128,3.2078,3267.8,3266.0,3.2078]
[1762526713332,3.2078,3267.8,3266.7,3.2078]
[1762526713333,3.21140468,3267.8,3266.7,3.2078]
[1762526713635,3.2078,3267.2,3266.4,3.11414601]
[1762526713824,3.2078,3267.2,3262.1,1.59332883]
[1762526713825,3.2078,3266.8,3264.9,3.2078]
[1762526714027,0.8091,3266.1,3262.9,8.1]
[1762526714233,0.4962,3267.1,3266.0,3.2078]
[1762526714540,0.8091,3266.1,3266.0,0.00280267]
[1762526714731,0.49644,3265.5,3264.7,3.2078]
[1762526714938,3.2078,3265.8,3264.7,3.2078]
[1762526715233,0.8091,3266.1,3265.6,3.2078]
[1762526715426,0.8091,3266.1,3265.8,3.2078]
[1762526715628,0.81302036,3266.1,3265.8,3.21142966]
[1762526715826,0.00392036,3266.1,3265.9,0.49635]
[1762526716229,3.2078,3267.6,3267.4,0.49613]
[1762526716427,3.2078,3268.4,3267.5,3.2078]
[1762526716625,3.2078,3268.4,3267.4,3.2078]
[1762526717241,0.49615,3267.3,3266.9,3.2078]
[1762526717537,0.49615,3267.3,3266.4,0.49628]
[1762526717538,0.49619,3267.1,3266.4,3.2078]
[1762526717739,3.2078,3267.6,3266.9,3.2078]
[1762526717932,3.2078,3267.2,3266.1,3.2078]
[1762526718130,3.2078,3267.2,3265.8,0.00362966]
[1762526718131,0.4962,3267.1,3266.5,3.2078]
[1762526718333,3.2078,3267.3,3266.5,3.2078]
[1762526718334,0.8091,3269.9,3267.0,3.2078]
[1762526718531,0.8091,3269.9,3269.2,3.2078]
[1762526718532,0.49578,3269.8,3269.2,3.2078]
[1762526718731,0.8091,3269.9,3269.2,3.2078]
[1762526718732,4.0169,3269.9,3269.2,3.2078]
[1762526718934,4.0169,3269.9,3266.6,4.01723257]
[1762526718935,3.2078,3271.0,3269.6,3.2078]
[1762526719135,3.2078,3272.4,3270.9,3.2078]
[1762526719341,11.023,3274.3,3268.5,11.023]
[1762526719342,3.2078,3271.6,3270.3,3.2078]
[1762526719639,0.49568,3270.5,3270.3,0.00246425]
[1762526719840,3.2078,3270.7,3270.3,0.00246425]
[1762526720142,0.49568,3270.5,3270.3,0.00246425]
[1762526720434,0.00459067,3271.3,3270.3,0.00246425]
[1762526720640,0.00259305,3271.8,3271.0,3.2078]
[1762526720833,3.2078,3271.6,3270.3,3.21026425]
[1762526721039,0.00259305,3271.8,3271.3,3.2078]
[1762526721538,0.49533,3272.7,3271.7,3.2078]
[1762526721736,3.2078,3272.8,3271.8,3.2078]
[1762526722041,0.49551,3271.6,3270.6,3.2078]
[1762526722344,0.49551,3271.6,3268.1,1.06221922]
[1762526722345,3.2078,3270.7,3269.7,3.2078]
[1762526722642,3.2078,3269.9,3269.3,3.2078]
[1762526722834,3.2078,3269.9,3268.8,3.2078]
[1762526722835,0.8091,3269.9,3268.8,3.2078]
[1762526723035,0.50037337,3269.7,3269.0,0.00458337]
[1762526723239,0.50037337,3269.7,3267.4,12.49282384]
[1762526723240,3.2078,3269.4,3268.5,3.2078]
[1762526723440,0.00274078,3269.4,3268.9,3.2078]
[1762526723738,3.2078,3269.2,3268.5,3.21109688]
[1762526724039,0.00274078,3269.4,3268.9,3.2078]
[1762526724338,3.2078,3271.5,3270.0,0.49574]
[1762526724537,3.2078,3270.8,3270.4,3.2078]
[1762526724729,3.2078,3270.8,3269.4,3.2078]
[1762526724929,3.2078,3270.1,3269.5,3.2078]
[1762526725131,0.49572,3270.1,3269.9,3.2078]
[1762526725335,0.49572,3270.1,3269.7,0.00458337]
[1762526725336,0.49576,3269.9,3269.7,0.00458337]
[1762526725650,3.2078,3270.2,3269.7,0.00458337]
[1762526725829,0.49575,3269.9,3269.7,0.00458337]
[1762526726033,1.30485,3269.9,3269.7,0.00458337]
[1762526726239,0.49589,3269.0,3268.8,3.2078]
[1762526726436,3.2078,3269.0,3268.2,3.2078]
[1762526726637,3.2078,3269.0,3267.9,3.2078]
[1762526726638,0.49591,3268.9,3267.9,3.2078]
[1762526726941,0.49603,3268.0,3267.9,3.2078]
[1762526727241,0.8091,3269.9,3266.0,1.27015384]
[1762526727242,3.21239052,3268.3,3267.6,0.00459052]
[1762526727431,3.2155614,3268.3,3267.6,0.00736673]
[1762526727635,0.49604,3268.0,3267.6,0.00736673]
[1762526727834,0.49589,3269.0,3267.8,3.2078]
[1762526728134,0.49589,3269.0,3267.6,0.00736673]
[1762526728135,0.49598,3268.4,3268.2,3.2078]
[1762526728329,0.49598,3268.4,3267.6,0.00736673]
[1762526728330,0.49607,3267.8,3267.6,0.00736673]
[1762526728529,11.2078,3267.7,3266.0,3.2078]
[1762526728738,3.2078,3267.7,3266.1,3.2078]
[1762526729035,3.2078,3267.2,3266.1,3.2078]
[1762526729228,0.8091,3268.0,3266.9,3.2078]
[1762526729428,0.49615,3267.2,3267.1,0.00459052]
[1762526729634,3.21239052,3267.8,3267.1,0.00459052]
[1762526729833,0.00459052,3267.8,3267.5,3.2078]